fUST/lending_fUST_20250630
["ID","MTS","AMOUNT","RATE_DAILY","PERIOD"]
[368578330,1751213466682,-954.05,0.00021714,2]
[368578331,1751213466691,-460.0,0.00021714,2]
[368578332,1751213466701,-844.34,0.00021714,2]
[368578333,1751213466710,-1863.26,0.00021714,2]
[368578334,1751213466719,-460.0,0.00021714,2]
[368578335,1751213466729,-1075.67,0.00021714,2]
[368578336,1751213466738,-1321.87,0.00021714,2]
[368578337,1751213466747,-460.0,0.00021714,2]
[368578338,1751213466756,-2266.93,0.00021714,2]
[368578339,1751213466766,-1689.29,0.00021714,2]
[368578340,1751213466775,-460.0,0.00021714,2]
[368578341,1751213466784,-632.62,0.00021714,2]
[368578342,1751213466794,-151.0,0.00021715,2]
[368578343,1751213466803,-2416.46,0.00021716,2]
[368578344,1751213466812,-460.0,0.00021716,2]
[368578345,1751213466822,-800.0,0.00021716,2]
[368578346,1751213466832,-2234.40001497,0.00021725,2]
[368578347,1751213466841,-193.96505387,0.00021771,2]
[368578348,1751213466852,-6536.85938346,0.00021797,6]
[368578349,1751213466861,-2000.0,0.000218,2]
[368578350,1751213466871,-2000.0,0.000218,2]
[368578351,1751213466881,-4987.53,0.000218,2]
[368578352,1751213466891,-211.0,0.000218,3]
[368578353,1751213466905,-2000.0,0.00021809,2]
[368578354,1751213466917,-2567.86171457,0.00021833,2]
[368578355,1751213466926,-662.01979044,0.0002184,2]
[368578356,1751213466935,-730.65643113,0.0002184,2]
[368578357,1751213466946,-284.0,0.00021859,2]
[368578358,1751213466956,-587.0,0.00021882,2]
[368578359,1751213466965,-2000.0,0.000219,2]
[368578360,1751213466975,-188.591227,0.000219,2]
[368578361,1751213466985,-500.56304579,0.00021908,2]
[368578362,1751213466995,-1000.0,0.00021908,2]
[368578363,1751213467004,-1000.0,0.00021908,2]
[368578364,1751213467013,-154.4173165,0.00021908,2]
[368578365,1751213467023,-1200.0,0.00021908,2]
[368578366,1751213467033,-1000.0,0.00021908,2]
[368578367,1751213467042,-1000.0,0.00021908,2]
[368578368,1751213467051,-1000.0,0.00021908,2]
[368578369,1751213467061,-284.0,0.00021917,2]
[368578370,1751213467070,-1142.36183814,0.00021918,2]
[368578371,1751213467080,-150.0,0.00021918,2]
[368578372,1751213467090,-559.454528,0.00021918,7]
[368578373,1751213467099,-559.454528,0.00021918,7]
[368578374,1751213467109,-200.84790805,0.00021918,2]
[368578375,1751213467118,-193.96505387,0.00021932,2]
[368578376,1751213467127,-1000.0,0.00021934,2]
[368578377,1751213467138,-711.68,0.00021958,2]
[368578378,1751213467147,-770.46,0.00021958,2]
[368578379,1751213467157,-3134.69,0.00021958,2]
[368578380,1751213467166,-579.16,0.00021958,2]
[368578381,1751213467176,-223.85287212,0.0002196,2]
[368578382,1751213467185,-460.0,0.00021962,2]
[368578383,1751213467195,-4547.62,0.00021962,2]
[368578384,1751213467204,-4813.95,0.00021962,2]
[368578385,1751213467214,-990.53,0.00021962,2]
[368578386,1751213467224,-460.0,0.00021962,2]
[368578387,1751213467234,-460.0,0.00021962,2]
[368578388,1751213467243,-546.86,0.00021962,2]
[368578389,1751213467253,-4925.02,0.00021962,2]
[368578390,1751213467263,-4832.15,0.00021962,2]
[368578391,1751213467272,-729.64,0.00021962,2]
[368578392,1751213467281,-460.0,0.00021962,2]
[368578393,1751213467291,-2653.8,0.00021962,2]
[368578394,1751213467300,-460.0,0.00021971,2]
[368578395,1751213467309,-460.0,0.00021972,2]
[368578396,1751213467319,-707.53,0.00021972,2]
[368578397,1751213467329,-792.53,0.00021972,2]
[368578398,1751213467338,-2414.73,0.00021972,2]
[368578399,1751213467347,-646.3,0.00021972,2]
[368578400,1751213467356,-475.64,0.00021972,2]
[368578401,1751213467365,-371.228903,0.00021972,7]
[368578402,1751213467375,-371.228903,0.00021972,7]
[368578403,1751213467384,-1064.11,0.00021972,2]
[368578404,1751213467393,-460.0,0.00021972,2]
[368578405,1751213467403,-620.0,0.00021972,2]
[368578406,1751213467412,-1257.18,0.00021972,2]
[368578407,1751213467421,-238.611491,0.00021972,7]
[368578408,1751213467430,-238.611491,0.00021972,7]
[368578409,1751213467440,-460.0,0.00021972,2]
[368578410,1751213467449,-997.24,0.00021972,2]
[368578411,1751213467458,-696.71,0.00021972,2]
[368578412,1751213467468,-1514.83,0.00021972,2]
[368578413,1751213467477,-704.72,0.00021972,2]
[368578414,1751213467487,-151.0,0.00021973,7]
[368578415,1751213467496,-151.0,0.00021973,7]
[368578416,1751213467505,-151.0,0.00021973,7]
[368578417,1751213467515,-460.0,0.00021973,2]
[368578418,1751213467524,-1715.34,0.00021973,2]
[368578419,1751213467533,-753.79,0.00021973,2]
[368578420,1751213467543,-594.48,0.00021973,2]
[368578421,1751213467552,-860.14,0.00021973,2]
[368578422,1751213467561,-460.0,0.00021973,2]
[368578423,1751213467572,-1152.83,0.00021973,2]
[368578424,1751213467582,-6011.46,0.00021973,2]
[368578425,1751213467592,-543.66,0.00021973,2]
[368578426,1751213467601,-566.23,0.00021977,2]
[368578427,1751213467610,-460.0,0.00021977,2]
[368578428,1751213467621,-513.98,0.00021977,2]
[368578429,1751213467631,-497.57,0.00021977,2]
[368578430,1751213467640,-460.0,0.00021977,2]
[368578431,1751213467649,-638.1,0.00021977,2]
[368578432,1751213467659,-913.1,0.00021977,2]
[368578433,1751213467668,-472.55,0.00021977,2]
[368578434,1751213467678,-934.56,0.00021977,2]
[368578435,1751213467687,-460.0,0.00021977,2]
[368578436,1751213467697,-994.93,0.00021977,2]
[368578437,1751213467707,-788.47,0.00021977,2]
[368578438,1751213467716,-535.69,0.00021977,2]
[368578439,1751213467726,-720.09,0.00021977,2]
[368578440,1751213467735,-460.0,0.00021977,2]
[368578441,1751213467745,-732.67,0.00021977,2]
[368578442,1751213467754,-310.17950622,0.00021977,2]
[368578443,1751213467764,-151.0,0.00021978,7]
[368578444,1751213467774,-151.0,0.00021978,7]
[368578445,1751213467783,-3943.89,0.00021978,2]
[368578446,1751213467792,-749.97,0.00021978,2]
[368578447,1751213467802,-2273.88,0.00021978,2]
[368578448,1751213467811,-1592.72,0.00021978,2]
[368578449,1751213467820,-1393.05,0.00021978,2]
[368578450,1751213467830,-6858.32,0.00021978,2]
[368578451,1751213467839,-2299.91,0.00021978,2]
[368578452,1751213467849,-1649.67,0.00021978,2]
[368578453,1751213467858,-460.0,0.00021979,2]
[368578454,1751213467867,-460.0,0.00021979,2]
[368578455,1751213467876,-151.0,0.0002198,2]
[368578456,1751213467886,-460.0,0.00021988,2]
[368578457,1751213467897,-222.271437,0.00021988,7]
[368578458,1751213467906,-222.271437,0.00021988,7]
[368578459,1751213467915,-151.0,0.00021988,7]
[368578460,1751213467924,-954.05,0.00021988,2]
[368578461,1751213467934,-370.32667154,0.00021988,2]
[368578462,1751213467944,-844.34,0.00021988,2]
[368578463,1751213467953,-196.344,0.00021988,7]
[368578464,1751213467964,-196.344,0.00021988,7]
[368578465,1751213467974,-1863.26,0.00021988,2]
[368578466,1751213467983,-460.0,0.00021988,2]
[368578467,1751213467993,-1075.67,0.00021988,2]
[368578468,1751213468002,-1321.87,0.00021988,2]
[368578469,1751213468011,-460.0,0.00021988,2]
[368578470,1751213468020,-399.956926,0.00021988,7]
[368578471,1751213468030,-399.956926,0.00021988,7]
[368578472,1751213468039,-2266.93,0.00021988,2]
[368578473,1751213468049,-1689.29,0.00021988,2]
[368578474,1751213468058,-580.93353819,0.00021988,2]
[368578475,1751213468067,-632.62,0.00021988,2]
[368578476,1751213468078,-151.0,0.0002199,2]
[368578477,1751213468087,-2416.46,0.0002199,2]
[368578478,1751213468097,-460.0,0.0002199,2]
[368578479,1751213468106,-1228.80856418,0.00021991,2]
[368578480,1751213468116,-57041.52564516,0.00022,2]
[368578481,1751213468125,-118878.16769317,0.00022,2]
[368578482,1751213468136,-156540.94809704,0.00022,5]
[368578483,1751213468146,-157.51,0.00022,3]
[368578484,1751213468156,-37861.86791069,0.00022,2]
[368578485,1751213468166,-563650.99792248,0.00022,5]
[368578486,1751213468332,-460.0,0.00020059,2]
[368578487,1751213468343,-235.24,0.00022,5]
[368578488,1751213468355,-41124.34060523,0.00022,5]
[368578489,1751213468367,-4466.2717165,0.00022,5]
[368578490,1751213468379,-116909.14867974,0.00022,5]
[368578491,1751213468618,-307.2692,0.00018411,2]
[368578492,1751213468859,-152.7308,0.00018411,2]
[368578493,1751213468869,-303.1,0.00018685,2]
[368578494,1751213468879,-151.0,0.00019178,2]
[368578495,1751213468889,-151.0,0.00019496,2]
[368578496,1751213468901,-151.0,0.00019786,2]
[368578497,1751213468912,-151.0,0.00020328,2]
[368578498,1751213468922,-460.0,0.00020333,2]
[368578499,1751213468932,-460.0,0.00020592,2]
[368578500,1751213468942,-460.0,0.00020607,2]
[368578501,1751213468952,-460.0,0.00020618,2]
[368578502,1751213468962,-460.0,0.00020866,2]
[368578503,1751213468973,-151.0,0.00020866,2]
[368578504,1751213468983,-460.0,0.00020881,2]
[368578505,1751213468993,-460.0,0.00020892,2]
[368578506,1751213469002,-460.0,0.0002114,2]
[368578507,1751213469012,-460.0,0.00021155,2]
[368578508,1751213469022,-460.0,0.00021166,2]
[368578509,1751213469031,-460.0,0.00021414,2]
[368578510,1751213469041,-460.0,0.00021429,2]
[368578511,1751213469051,-460.0,0.0002144,2]
[368578512,1751213469060,-460.0,0.00021688,2]
[368578513,1751213469069,-460.0,0.00021703,2]
[368578514,1751213469081,-460.0,0.00021714,2]
[368578515,1751213469090,-460.0,0.00021962,2]
[368578516,1751213469100,-460.0,0.00021977,2]
[368578517,1751213469109,-460.0,0.00021988,2]
[368578518,1751213469119,-4873.35147403,0.00022,5]
[368578519,1751213469132,-65823.5571362,0.00022,5]
[368578520,1751213469218,-256.558612,0.00021275,2]
[368578521,1751213469227,-269.70644381,0.00022,5]
[368578522,1751213469239,-45644.41146665,0.00022,5]
[368578523,1751213469249,-351.84601377,0.00022,2]
[368578524,1751213469259,-161.42663354,0.00022,2]
[368578525,1751213469268,-14350.81261325,0.00022,5]
[368578526,1751213469280,-37673.19711248,0.00022,5]
[368578527,1751213469297,-444.077298,0.00022,5]
[368578528,1751213526919,24900.0,0.00017529,2]
[368578529,1751213530986,500.0,0.00018068,2]
[368578530,1751213680394,227.741933,0.00013699,2]
[368578531,1751213680793,180.0,0.0001792,2]
[368578533,1751213957084,193.4593587,0.00017394,2]
[368578534,1751214022503,9968.16092387,0.000179,2]
[368578535,1751214069468,16338.71140846,0.000179,2]
[368578536,1751214069498,10404.96979805,0.000179,2]
[368578537,1751214069526,3256.31879349,0.000179,2]
[368578538,1751214073790,500.0,0.00018068,2]
[368578539,1751214267099,-180.36767242,0.00018293,2]
[368578540,1751214308681,793.6367943,0.00017393,2]
[368578541,1751214370498,318.637349,0.00017392,2]
[368578558,1751214578662,207.58812137,0.0001792,2]
[368578559,1751214604722,2444.6678783,0.000181,2]
[368578560,1751214611499,500.0,0.00018068,2]
[368578583,1751214632175,-655.20954596,0.00018291,2]
[368578585,1751214632186,-300.0,0.00018389,2]
[368578587,1751214632195,-300.0,0.00018389,2]
[368578589,1751214632205,-603.0,0.00018389,2]
[368578592,1751214632224,-500.0,0.0001839,2]
[368578594,1751214632235,-323.60827945,0.0001839,2]
[368578596,1751214632245,-500.0,0.0001839,2]
[368578598,1751214632255,-248.03601282,0.0001839,2]
[368578600,1751214632265,-475.86934177,0.0001839,2]
[368578602,1751214632276,-474.05003104,0.0001839,2]
[368578604,1751214632288,-500.0,0.0001839,2]
[368578606,1751214632298,-500.0,0.0001839,2]
[368578608,1751214632307,-252.12744302,0.0001839,2]
[368578610,1751214632318,-169.51383863,0.0001839,2]
[368578612,1751214632328,-500.0,0.0001839,2]
[368578614,1751214632338,-246.124175,0.0001839,2]
[368578616,1751214632348,-500.0,0.0001839,2]
[368578619,1751214632360,-572.95598846,0.0001839,2]
[368578620,1751214632369,-500.0,0.0001839,2]
[368578623,1751214632379,-500.0,0.0001839,2]
[368578625,1751214632389,-500.0,0.0001839,2]
[368578627,1751214632398,-500.0,0.0001839,2]
[368578629,1751214632408,-500.0,0.0001839,2]
[368578631,1751214632418,-500.0,0.0001839,2]
[368578633,1751214632427,-535.27288908,0.0001839,2]
[368578635,1751214632437,-500.0,0.0001839,2]
[368578637,1751214632446,-500.0,0.0001839,2]
[368578638,1751214632456,-500.0,0.0001839,2]
[368578640,1751214632465,-500.0,0.0001839,2]
[368578642,1751214632475,-500.0,0.0001839,2]
[368578644,1751214632484,-500.0,0.0001839,2]
[368578646,1751214632494,-500.0,0.0001839,2]
[368578647,1751214632504,-431.05558801,0.0001839,2]
[368578648,1751214632513,-500.0,0.0001839,2]
[368578649,1751214632524,-500.0,0.0001839,2]
[368578650,1751214632533,-500.0,0.0001839,2]
[368578651,1751214632543,-170.12328557,0.0001839,2]
[368578652,1751214632552,-281.69698767,0.0001839,2]
[368578653,1751214632562,-500.0,0.0001839,2]
[368578654,1751214632572,-500.0,0.0001839,2]
[368578655,1751214632581,-500.0,0.0001839,2]
[368578656,1751214632591,-500.0,0.0001839,2]
[368578658,1751214632601,-500.0,0.0001839,2]
[368578659,1751214632610,-500.0,0.0001839,2]
[368578660,1751214632620,-500.0,0.0001839,2]
[368578661,1751214632629,-500.0,0.0001839,2]
[368578662,1751214632638,-500.0,0.0001839,2]
[368578664,1751214632648,-269.14698713,0.0001839,2]
[368578666,1751214632657,-500.0,0.0001839,2]
[368578668,1751214632667,-559.00617644,0.0001839,2]
[368578670,1751214632676,-500.0,0.0001839,2]
[368578672,1751214632686,-500.0,0.0001839,2]
[368578674,1751214632696,-500.0,0.0001839,2]
[368578675,1751214632705,-364.56024361,0.0001839,2]
[368578678,1751214632719,-135.43975639,0.0001839,2]
[368578680,1751214632728,-500.0,0.0001839,2]
[368578681,1751214632738,-500.0,0.0001839,2]
[368578682,1751214632747,-500.0,0.0001839,2]
[368578683,1751214632757,-500.0,0.0001839,2]
[368578684,1751214632767,-500.0,0.0001839,2]
[368578685,1751214632777,-500.0,0.0001839,2]
[368578686,1751214632787,-133.63498203,0.0001839,2]
[368578687,1751214632807,-366.36501797,0.0001839,2]
[368578688,1751214632817,-45.86073586,0.0001839,2]
[368578689,1751214632829,-414.13926414,0.0001839,2]
[368578690,1751214632838,-397.17322322,0.0001839,2]
[368578702,1751214637899,-62.82677678,0.0001839,2]
[368578704,1751214637909,-460.0,0.0001839,2]
[368578707,1751214637919,-460.0,0.0001839,2]
[368578709,1751214637928,-526.21974149,0.0001839,2]
[368578712,1751214637955,-57.16025851,0.0001839,2]
[368578714,1751214637964,-569.2,0.0001839,2]
[368578716,1751214637973,-2220.41,0.0001839,2]
[368578718,1751214637983,-460.0,0.0001839,2]
[368578720,1751214637992,-460.0,0.0001839,2]
[368578722,1751214638001,-460.0,0.0001839,2]
[368578724,1751214638010,-460.0,0.0001839,2]
[368578727,1751214638020,-460.0,0.0001839,2]
[368578729,1751214638029,-460.0,0.00018391,2]
[368578731,1751214638038,-460.0,0.00018391,2]
[368578733,1751214638048,-460.0,0.00018391,2]
[368578735,1751214638056,-460.0,0.00018391,2]
[368578736,1751214638065,-460.0,0.00018391,2]
[368578738,1751214638075,-460.0,0.00018391,2]
[368578742,1751214638085,-460.0,0.00018391,2]
[368578745,1751214638095,-460.0,0.00018391,2]
[368578747,1751214638103,-261.20889766,0.00018391,2]
[368578767,1751214638274,-198.79110234,0.00018391,2]
[368578769,1751214638284,-316.20889766,0.00018392,2]
[368578771,1751214638299,-143.79110234,0.00018392,2]
[368578773,1751214638309,-460.0,0.00018392,2]
[368578775,1751214638318,-460.0,0.00018392,2]
[368578777,1751214638329,-460.0,0.00018392,2]
[368578779,1751214638338,-460.0,0.00018392,2]
[368578781,1751214638347,-460.0,0.00018392,2]
[368578783,1751214638356,-460.0,0.00018392,2]
[368578785,1751214638366,-460.0,0.00018392,2]
[368578787,1751214638375,-838.12,0.00018392,2]
[368578789,1751214638385,-3008.72,0.00018392,2]
[368578791,1751214638394,-460.0,0.00018392,2]
[368578793,1751214638403,-474.95382324,0.00018392,2]
[368578795,1751214638412,-343.78,0.00018392,2]
[368578797,1751214638421,-460.0,0.00018392,2]
[368578798,1751214638430,-709.41,0.00018392,2]
[368578800,1751214638439,-3031.75,0.00018392,2]
[368578802,1751214638449,-460.0,0.00018392,2]
[368578804,1751214638458,-664.82,0.00018392,2]
[368578806,1751214638467,-460.0,0.00018392,2]
[368578808,1751214638477,-460.0,0.00018392,2]
[368578809,1751214638487,-660.35,0.00018392,2]
[368578811,1751214638496,-493.51,0.00018392,2]
[368578813,1751214638505,-3488.56,0.00018392,2]
[368578815,1751214638514,-1073.01,0.00018392,2]
[368578817,1751214638524,-460.0,0.00018392,2]
[368578819,1751214638533,-460.0,0.00018392,2]
[368578821,1751214638542,-575.85,0.00018392,2]
[368578823,1751214638551,-3160.96,0.00018392,2]
[368578825,1751214638560,-3422.77,0.00018392,2]
[368578827,1751214638569,-516.83,0.00018392,2]
[368578828,1751214638578,-460.0,0.00018392,2]
[368578830,1751214638587,-460.0,0.00018392,2]
[368578832,1751214638596,-1879.78,0.00018392,2]
[368578834,1751214638606,-460.0,0.00018392,2]
[368578836,1751214638615,-460.0,0.00018392,2]
[368578838,1751214638625,-1343.88,0.00018392,2]
[368578840,1751214638634,-530.65,0.00018392,2]
[368578842,1751214638643,-600.34,0.00018392,2]
[368578844,1751214638652,-594.39,0.00018392,2]
[368578846,1751214638661,-1811.05,0.00018392,2]
[368578847,1751214638671,-484.72,0.00018392,2]
[368578849,1751214638680,-160.0,0.00018392,2]
[368578851,1751214638689,-460.0,0.00018393,2]
[368578853,1751214638701,-460.0,0.00018393,2]
[368578855,1751214638710,-460.0,0.00018393,2]
[368578874,1751214638719,-159.26821546,0.00018393,2]
[368578877,1751214638893,-460.0,0.00018393,2]
[368578879,1751214638902,-460.0,0.00018393,2]
[368578881,1751214638911,-460.0,0.00018393,2]
[368578883,1751214638921,-460.0,0.00018393,2]
[368578885,1751214638931,-460.0,0.00018393,2]
[368578888,1751214638940,-460.0,0.00018393,2]
[368578890,1751214638950,-460.0,0.00018393,2]
[368578892,1751214638959,-167.19264588,0.00018393,2]
[368578894,1751214638969,-339.99423201,0.00018393,2]
[368578896,1751214638978,-460.0,0.00018393,2]
[368578898,1751214638987,-573.43,0.00018393,2]
[368578901,1751214638997,-460.0,0.00018393,2]
[368578903,1751214639007,-460.0,0.00018393,2]
[368578904,1751214639016,-816.59,0.00018393,2]
[368578906,1751214639025,-460.0,0.00018393,2]
[368578908,1751214639035,-633.25,0.00018393,2]
[368578910,1751214639045,-460.0,0.00018393,2]
[368578912,1751214639055,-932.7,0.00018393,2]
[368578914,1751214639065,-207.77006302,0.00018393,2]
[368578916,1751214639075,-460.0,0.00018393,2]
[368578918,1751214639086,-4508.6,0.00018393,2]
[368578920,1751214639096,-806.75,0.00018393,2]
[368578922,1751214639105,-991.41,0.00018393,2]
[368578924,1751214639115,-437.48988262,0.00018395,2]
[368578926,1751214639124,-460.0,0.00018395,2]
[368578928,1751214639136,-460.0,0.00018395,2]
[368578930,1751214639146,-442.93675246,0.00018395,8]
[368578932,1751214639156,-1263.59,0.00018395,2]
[368578934,1751214639166,-1126.2,0.00018395,2]
[368578936,1751214639175,-1511.29,0.00018395,2]
[368578938,1751214639185,-460.0,0.00018395,2]
[368578940,1751214639195,-460.0,0.00018395,2]
[368578942,1751214639205,-460.0,0.00018395,2]
[368578944,1751214639214,-1150.3,0.00018395,2]
[368578946,1751214639224,-879.31,0.00018395,2]
[368578948,1751214639234,-531.23,0.00018395,2]
[368578949,1751214639243,-1095.64,0.00018395,2]
[368578951,1751214639252,-1792.45,0.00018395,2]
[368578953,1751214639263,-1237.25,0.00018395,2]
[368578955,1751214639273,-460.0,0.00018395,2]
[368578957,1751214639284,-500.0,0.00018395,2]
[368578959,1751214639293,-460.0,0.00018396,2]
[368578961,1751214639303,-460.0,0.00018396,2]
[368578963,1751214639312,-460.0,0.00018396,2]
[368578965,1751214639322,-460.0,0.00018396,2]
[368578967,1751214639335,-253.53554263,0.00018396,2]
[368578969,1751214639345,-460.0,0.00018396,2]
[368578971,1751214639355,-460.0,0.00018396,2]
[368578973,1751214639365,-494.59,0.00018396,2]
[368578975,1751214639374,-529.04,0.00018396,2]
[368578977,1751214639384,-460.0,0.00018396,2]
[368578979,1751214639393,-621.83,0.00018396,2]
[368578981,1751214639402,-492.8,0.00018396,2]
[368578982,1751214639411,-460.0,0.00018396,2]
[368578984,1751214639422,-460.0,0.00018396,2]
[368578986,1751214639433,-460.0,0.00018396,2]
[368578988,1751214639442,-4835.72,0.00018396,2]
[368578990,1751214639452,-1533.27,0.00018396,2]
[368578992,1751214639462,-488.44,0.00018396,2]
[368578994,1751214639474,-460.0,0.00018396,2]
[368578996,1751214639484,-460.0,0.00018396,2]
[368578998,1751214639493,-460.0,0.00018396,2]
[368579000,1751214639503,-151.83,0.000184,3]
[368579002,1751214639512,-455.52,0.000184,3]
[368579004,1751214639521,-560.0,0.00018409,2]
[368579006,1751214639531,-460.0,0.00018409,2]
[368579008,1751214639540,-6207.85187727,0.00018409,2]
[368579010,1751214639550,-460.0,0.00018409,2]
[368579012,1751214639559,-460.0,0.00018409,2]
[368579014,1751214639570,-460.0,0.00018409,2]
[368579016,1751214639580,-483.06495943,0.0001841,2]
[368579018,1751214639590,-460.0,0.0001841,2]
[368579020,1751214639599,-460.0,0.0001841,2]
[368579022,1751214639609,-460.0,0.0001841,2]
[368579024,1751214639618,-460.0,0.0001841,2]
[368579026,1751214639628,-460.0,0.0001841,2]
[368579028,1751214639637,-460.0,0.0001841,2]
[368579030,1751214639648,-600.39,0.0001841,2]
[368579032,1751214639657,-460.0,0.0001841,2]
[368579033,1751214639667,-460.0,0.0001841,2]
[368579035,1751214639676,-460.0,0.0001841,2]
[368579037,1751214639685,-460.0,0.0001841,2]
[368579039,1751214639695,-460.0,0.0001841,2]
[368579040,1751214639704,-1000.0,0.0001841,2]
[368579042,1751214639714,-1000.0,0.0001841,2]
[368579044,1751214639723,-1000.0,0.0001841,2]
[368579046,1751214639733,-1000.0,0.0001841,2]
[368579048,1751214639743,-1000.0,0.0001841,2]
[368579050,1751214639752,-1013.29780013,0.0001841,2]
[368579052,1751214639763,-460.0,0.0001841,2]
[368579054,1751214639774,-92.18310352,0.0001841,2]
[368579056,1751214639787,-367.81689648,0.0001841,2]
[368579058,1751214639796,-460.0,0.0001841,2]
[368579060,1751214639806,-460.0,0.0001841,2]
[368579062,1751214639815,-460.0,0.0001841,2]
[368579063,1751214639825,-460.0,0.0001841,2]
[368579065,1751214639836,-1812.34,0.0001841,2]
[368579067,1751214639846,-460.0,0.0001841,2]
[368579069,1751214639855,-460.0,0.00018415,2]
[368579071,1751214639865,-460.0,0.00018415,2]
[368579073,1751214639874,-460.0,0.00018415,2]
[368579075,1751214639883,-460.0,0.00018415,2]
[368579077,1751214639892,-460.0,0.00018417,2]
[368579078,1751214639902,-207.4,0.00018434,2]
[368579080,1751214639911,-5000.0,0.00018434,2]
[368579082,1751214639920,-500.0,0.00018434,2]
[368579084,1751214639929,-500.0,0.00018434,2]
[368579086,1751214639939,-500.0,0.00018434,2]
[368579088,1751214639948,-690.642,0.00018434,2]
[368579089,1751214639957,-500.0,0.00018434,2]
[368579091,1751214639966,-500.0,0.00018434,2]
[368579093,1751214639975,-500.0,0.00018434,2]
[368579095,1751214639984,-500.0,0.00018434,2]
[368579097,1751214639993,-500.0,0.00018434,2]
[368579099,1751214640002,-500.0,0.00018434,2]
[368579101,1751214640011,-500.0,0.00018434,2]
[368579102,1751214640020,-500.0,0.00018434,2]
[368579104,1751214640030,-500.0,0.00018434,2]
[368579106,1751214640040,-500.0,0.00018434,2]
[368579108,1751214640050,-500.0,0.00018434,2]
[368579110,1751214640059,-500.0,0.00018434,2]
[368579112,1751214640068,-500.0,0.00018434,2]
[368579114,1751214640079,-500.0,0.00018434,2]
[368579116,1751214640088,-359.07977781,0.00018434,2]
[368579117,1751214640097,-500.0,0.00018434,2]
[368579119,1751214640106,-500.0,0.00018434,2]
[368579121,1751214640116,-500.0,0.00018434,2]
[368579123,1751214640125,-500.0,0.00018434,2]
[368579125,1751214640134,-500.0,0.00018434,2]
[368579127,1751214640144,-500.0,0.00018434,2]
[368579129,1751214640153,-500.0,0.00018434,2]
[368579130,1751214640162,-200.00227428,0.00018489,2]
[368579132,1751214640172,-2428.4490798,0.00018522,2]
[368579134,1751214640181,-3564.39970712,0.00018566,2]
[368579136,1751214640191,-583.38,0.00018664,2]
[368579138,1751214640200,-569.2,0.00018664,2]
[368579140,1751214640209,-2220.41,0.00018664,2]
[368579142,1751214640219,-460.0,0.00018664,2]
[368579144,1751214640227,-460.0,0.00018664,2]
[368579146,1751214640236,-460.0,0.00018665,2]
[368579147,1751214640246,-460.0,0.00018665,2]
[368579149,1751214640255,-460.0,0.00018665,2]
[368579151,1751214640263,-460.0,0.00018665,2]
[368579153,1751214640273,-460.0,0.00018665,2]
[368579155,1751214640285,-460.0,0.00018665,2]
[368579157,1751214640294,-460.0,0.00018665,2]
[368579159,1751214640303,-460.0,0.00018665,2]
[368579160,1751214640312,-460.0,0.00018665,2]
[368579162,1751214640321,-460.0,0.00018666,2]
[368579164,1751214640332,-460.0,0.00018666,2]
[368579166,1751214640341,-460.0,0.00018666,2]